fUSD/lending_fUSD_20240813
["ID","MTS","AMOUNT","RATE_DAILY","PERIOD"]
[334770283,1723541433351,-1286.40886734,0.00011,2]
[334770286,1723541437795,-313.37696215,0.000109,2]
[334770288,1723541437805,-167.77,0.0001099,2]
[334770289,1723541437815,-167.77,0.0001099,2]
[334770290,1723541437824,-167.77,0.0001099,2]
[334770291,1723541437834,-167.77,0.0001099,2]
[334770292,1723541437844,-167.77,0.0001099,2]
[334770293,1723541437853,-167.77,0.0001099,2]
[334770294,1723541437863,-167.77,0.0001099,2]
[334770295,1723541437873,-167.77,0.0001099,2]
[334770296,1723541437882,-62.9345282,0.0001099,2]
[334770297,1723541437894,-104.8354718,0.0001099,2]
[334770298,1723541437903,-167.77,0.0001099,2]
[334770299,1723541437912,-167.77,0.0001099,2]
[334770300,1723541437921,-167.77,0.0001099,2]
[334770301,1723541437932,-167.77,0.0001099,2]
[334770302,1723541437942,-167.77,0.0001099,2]
[334770303,1723541437951,-167.77,0.0001099,2]
[334770304,1723541437960,-167.77,0.0001099,2]
[334770305,1723541437969,-167.77,0.0001099,2]
[334770306,1723541437979,-167.77,0.0001099,2]
[334770307,1723541437987,-167.77,0.0001099,2]
[334770308,1723541437996,-167.77,0.0001099,2]
[334770309,1723541438005,-167.77,0.0001099,2]
[334770310,1723541438015,-167.77,0.0001099,2]
[334770311,1723541438024,-167.77,0.0001099,2]
[334770312,1723541438033,-167.77,0.0001099,2]
[334770313,1723541438042,-167.77,0.0001099,2]
[334770314,1723541438051,-167.77,0.0001099,2]
[334770315,1723541438060,-167.77,0.0001099,2]
[334770316,1723541438070,-167.77,0.0001099,2]
[334770317,1723541438079,-167.77,0.0001099,2]
[334770318,1723541438088,-167.77,0.0001099,2]
[334770319,1723541438097,-128.27602125,0.0001099,2]
[334770320,1723541438150,-39.49397875,0.0001099,2]
[334770321,1723541438159,-167.77,0.0001099,2]
[334770322,1723541438169,-167.77,0.0001099,2]
[334770323,1723541438178,-167.77,0.0001099,2]
[334770324,1723541438189,-167.77,0.0001099,2]
[334770325,1723541438198,-167.77,0.0001099,2]
[334770326,1723541438208,-167.77,0.0001099,2]
[334770327,1723541438217,-167.77,0.0001099,2]
[334770328,1723541438226,-167.77,0.0001099,2]
[334770329,1723541438236,-167.77,0.0001099,2]
[334770331,1723541438246,-167.77,0.0001099,2]
[334770332,1723541438255,-167.77,0.0001099,2]
[334770334,1723541438264,-167.77,0.0001099,2]
[334770336,1723541438274,-56995.5956484,0.00011,2]
[334770338,1723541438285,-29174.77924801,0.00011,2]
[334770651,1723541442100,-295.745,0.00011,2]
[334770654,1723541442949,-232950.0,0.00011,2]
[334770687,1723541443399,-9940.53179291,0.00011,2]
[334770895,1723541446363,-3346.83171416,0.00011,2]
[334770947,1723542591723,296.31,8.507e-05,2]
[334770951,1723542631931,-150.0,9.888e-05,2]
[334770952,1723542631940,-829.62220265,9.888e-05,2]
[334770953,1723542631954,-3436.54001953,9.888e-05,2]
[334770954,1723542631963,-801.98,0.00010502,2]
[334770955,1723542631973,-300.0,0.00010545,2]
[334770956,1723542631982,-10668.86843363,0.00010546,2]
[334770957,1723542631994,-389.84087267,0.00010546,2]
[334770958,1723542632006,-3422.04110642,0.00010546,2]
[334770959,1723542632018,-10267.24643384,0.00010546,2]
[334770960,1723542632030,-1011.08315344,0.00010546,2]
[334770961,1723542632041,-1828.12729033,0.00010546,2]
[334770962,1723542632051,-216.0,0.00010546,2]
[334770963,1723542632060,-199.87992623,0.00010593,2]
[334770964,1723542632072,-401.44091038,0.00010593,2]
[334770965,1723542632084,-292.52138008,0.00010593,2]
[334770966,1723542632097,-106.15778331,0.00010593,2]
[334770967,1723542632107,-276.15973124,0.00010771,2]
[334770968,1723542632119,-20.15026876,0.00010771,2]
[334770969,1723542632130,-270.01309483,0.000108,2]
[334770970,1723542632143,-4603.03995499,0.000108,2]
[334770971,1723542632156,-1797.61002149,0.000108,2]
[334770972,1723542632168,-574.00482869,0.000108,2]
[334770973,1723542632179,-2860.70466771,0.000108,2]
[334770974,1723542632191,-2000.0,0.000108,2]
[334770975,1723542632202,-250.0,0.000108,2]
[334770976,1723542632213,-335.95533229,0.000108,2]
[334770977,1723542632223,-226.54429911,0.000109,2]
[334770979,1723542632241,-273.44570089,0.000109,2]
[334770981,1723542632251,-2472.29168676,0.000109,2]
[334770983,1723542632260,-256.3785692,0.000109,2]
[334770985,1723542632270,-332.67659549,0.000109,2]
[334770987,1723542632279,-1500.0,0.00010959,5]
[334770989,1723542632291,-150.0,0.00010998,2]
[334770991,1723542632300,-500.0,0.00010999,2]
[334770993,1723542632310,-500.0,0.00010999,2]
[334770995,1723542632319,-500.0,0.00010999,2]
[334770997,1723542632329,-220.95108025,0.00010999,2]
[334770999,1723542632337,-500.0,0.00010999,2]
[334771001,1723542632347,-500.0,0.00010999,2]
[334771002,1723542632356,-500.0,0.00010999,2]
[334771004,1723542632365,-500.0,0.00010999,2]
[334771006,1723542632375,-640.60535847,0.00010999,2]
[334771008,1723542632384,-500.0,0.00010999,2]
[334771010,1723542632393,-500.0,0.00010999,2]
[334771012,1723542632402,-5163.38,0.00010999,2]
[334771014,1723542632411,-1601.89900957,0.00011,2]
[334771016,1723542632422,-432.000004,0.00011,2]
[334771018,1723542632434,-3230.68631558,0.00011,2]
[334771021,1723542632445,-1348.71580042,0.00011,2]
[334771023,1723542632456,-3150.20515077,0.00011,2]
[334771025,1723542632467,-9750.41485149,0.00011,2]
[334771027,1723542632478,-4943.83845254,0.00011,2]
[334771028,1723542632488,-4866.61354802,0.00011,2]
[334771029,1723542632499,-889.15149544,0.00011,2]
[334771030,1723542632510,-1601.38575,0.00011,2]
[334771031,1723542632521,-61243.99999999,0.00011,2]
[334771032,1723542632532,-5649.28327191,0.00011,2]
[334771033,1723542632549,-571.80205973,0.00011,2]
[334771034,1723542632560,-299.6900001,0.00011,2]
[334771035,1723542632571,-273409.90142047,0.00011,2]
[334771036,1723542632581,-164226.70210128,0.00011,2]
[334771037,1723542632592,-1440.04256231,0.00011,2]
[334771038,1723542632603,-1033.7,0.00011,2]
[334771039,1723542632615,-472.14322502,0.00011,2]
[334771040,1723542632626,-450.037073,0.00011,2]
[334771041,1723542632638,-1054.8607206,0.00011,2]
[334771042,1723542632649,-439.67639886,0.00011,2]
[334771043,1723542632661,-941.19958855,0.00011,2]
[334771044,1723542632671,-6703.7546083,0.00011,2]
[334771045,1723542632682,-846.08694448,0.00011,2]
[334771046,1723542632694,-508.11036067,0.00011,2]
[334771049,1723542638003,-747.36,0.00010461,2]
[334771050,1723542638013,-914.76038026,0.00011,2]
[334771051,1723542638042,-2564.7511365,0.00011,2]
[334771054,1723542638079,-860.810172,0.00011,2]
[334771057,1723542638091,-295.836,0.00011,2]
[334771061,1723542638128,-5403.3429348,0.00011,2]
[334771063,1723542638140,-496.0,0.00011,2]
[334771064,1723542638162,-7102.99562553,0.00011,2]
[334771065,1723542638175,-7285.882347,0.00011,2]
[334771066,1723542638186,-1038.55639681,0.00011,2]
[334771067,1723542638198,-902.15263318,0.00011,2]
[334771068,1723542638210,-577.7598118,0.00011,2]
[334771069,1723542638221,-716.53939924,0.00011,2]
[334771070,1723542638232,-1281.17454001,0.00011,2]
[334771071,1723542638244,-408.0085986,0.00011,2]
[334771072,1723542638255,-1076.7,0.00011,2]
[334771073,1723542638267,-1154.54016205,0.00011,2]
[334771074,1723542638279,-845.57482597,0.00011,2]
[334771075,1723542638290,-428.96358663,0.00011,2]
[334771076,1723542638303,-930.51620209,0.00011,2]
[334771077,1723542638314,-5808.32989986,0.00011,2]
[334771078,1723542638361,-38160.11368944,0.00011,2]
[334771079,1723542638373,-1249.1832568,0.00011,2]
[334771080,1723542638385,-20029.48089212,0.00011,2]
[334771081,1723542638412,-2500.0,0.00011,2]
[334771082,1723542638423,-974.16207443,0.00011,2]
[334771083,1723542638436,-399.08923112,0.00011,2]
[334771084,1723542638447,-301.11415239,0.00011,2]
[334771085,1723542638458,-4656.0,0.00011,2]
[334771087,1723542638469,-449.59669731,0.00011,2]
[334771089,1723542638480,-46569.56456395,0.00011,2]
[334771091,1723542638491,-1475.47068981,0.00011,2]
[334771093,1723542638502,-2709.20962988,0.00011,2]
[334771095,1723542638513,-70241.64892783,0.00011,2]
[334771198,1723542640027,-7626989.66602369,0.00011,2]
[334771200,1723542640037,-227.78421077,0.00011,2]
[334771202,1723542640050,-2000.0,0.00011,2]
[334771204,1723542640060,-200.0,0.00011,2]
[334771206,1723542640070,-413.15115888,0.00011,2]
[334771208,1723542640079,-200.0,0.00011,2]
[334771210,1723542640089,-200.0,0.00011,2]
[334771212,1723542640099,-200.0,0.00011,2]
[334771214,1723542640108,-164.68926633,0.00011,2]
[334771216,1723542640118,-2000.0,0.0001111,2]
[334771218,1723542640127,-200.0,0.0001111,2]
[334771220,1723542640137,-200.0,0.0001111,2]
[334771222,1723542640147,-200.0,0.0001111,2]
[334771224,1723542640156,-200.0,0.0001111,2]
[334771225,1723542640165,-286.05,0.00011155,2]
[334771227,1723542640175,-2000.0,0.00011221,2]
[334771230,1723542640185,-200.0,0.00011221,2]
[334771232,1723542640195,-200.0,0.00011221,2]
[334771233,1723542640204,-200.0,0.00011221,2]
[334771235,1723542640214,-156.66,0.00011283,2]
[334771237,1723542640223,-2000.0,0.00011333,2]
[334771239,1723542640233,-200.0,0.00011333,2]
[334771241,1723542640242,-200.0,0.00011333,2]
[334771243,1723542640251,-200.0,0.00011333,2]
[334771245,1723542640261,-250.0,0.00011371,2]
[334771247,1723542640270,-2000.0,0.00011447,2]
[334771249,1723542640279,-200.0,0.00011447,2]
[334771250,1723542640288,-200.0,0.00011447,2]
[334771253,1723542640299,-200.0,0.00011447,2]
[334771254,1723542640308,-11202.77,0.0001147,2]
[334771256,1723542640317,-411.37,0.0001147,2]
[334771258,1723542640327,-250.0,0.00011475,2]
[334771260,1723542640336,-23890.0,0.00011489,2]
[334771262,1723542640346,-165.97,0.00011825,2]
[334771264,1723542640355,-165.97,0.00011845,2]
[334771266,1723542640365,-155.0,0.0001185,2]
[334771268,1723542640374,-8744.69390815,0.0001185,2]
[334771270,1723542640383,-165.97,0.00011865,2]
[334771272,1723542640394,-216.0,0.00011865,2]
[334771274,1723542640403,-150.0,0.00011868,2]
[334771276,1723542640412,-165.97,0.00011884,2]
[334771277,1723542640421,-1000.0,0.00011917,2]
[334771279,1723542640430,-3294.1684,0.00011973,2]
[334771281,1723542640440,-155.14578864,0.00012397,2]
[334771283,1723542640449,-2472.29168674,0.00012456,2]
[334771285,1723542640458,-275.1054945,0.00012681,2]
[334771287,1723542640468,-1263.0163,0.0001269,2]
[334771289,1723542640477,-399.81996742,0.00012709,2]
[334771290,1723542640486,-1534.62276749,0.00012818,2]
[334771292,1723542640496,-347.64612934,0.00012826,2]
[334771294,1723542640506,-1275.34900939,0.00012826,2]
[334771296,1723542640516,-275.64391923,0.00012883,2]
[334771298,1723542640526,-520.13340827,0.00012883,2]
[334771300,1723542640536,-7000.0,0.00012928,3]
[334771302,1723542640546,-3007.44861,0.00013,2]
[334771304,1723542640555,-296.31,0.00013035,2]
[334771305,1723542640563,-155.0,0.00013125,2]
[334771307,1723542640572,-775.9702395,0.00013165,2]
[334771309,1723542640582,-523.33093654,0.00013165,2]
[334771311,1723542640592,-216.0,0.00013183,2]
[334771313,1723542640602,-10742.04021264,0.00013199,2]
[334771315,1723542640613,-1000.0,0.00013241,2]
[334771317,1723542640623,-3120.33367931,0.00013283,2]
[334771319,1723542640634,-155.0871903,0.00013297,2]
[334771321,1723542640644,-5403.00141948,0.00013297,2]
[334771323,1723542640654,-256.18950825,0.0001331,2]
[334771324,1723542640663,-293.29987586,0.00013333,2]
[334771326,1723542640672,-370.6658017,0.00013483,2]
[334771328,1723542640682,-370.6658017,0.00013483,2]
[334771330,1723542640691,-5886.46787544,0.0001351,2]
[334771332,1723542640700,-546.83834329,0.00013648,2]
[334771333,1723542640710,-155.1520688,0.00013698,2]
[334771335,1723542640719,-1418.1,0.00013698,2]
[334771337,1723542640728,-500.0,0.00013698,2]
[334771339,1723542640738,-500.0,0.00013698,2]
[334771340,1723542640748,-500.0,0.00013698,2]
[334771342,1723542640757,-500.0,0.00013698,2]
[334771344,1723542640767,-500.0,0.00013698,2]
[334771346,1723542640776,-500.0,0.00013698,2]
[334771348,1723542640786,-500.0,0.00013698,2]
[334771350,1723542640797,-500.0,0.00013698,2]
[334771352,1723542640806,-500.0,0.00013698,2]
[334771354,1723542640816,-282.41,0.00013698,2]
[334771356,1723542640825,-1249.49,0.00013698,2]
[334771358,1723542640835,-1182.62,0.00013698,2]
[334771359,1723542640844,-500.0,0.00013698,2]
[334771361,1723542640854,-2751.0,0.00013699,2]
[334771363,1723542640863,-200.0,0.00013699,2]
[334771365,1723542640873,-231549.95269447,0.000138,3]
[334771367,1723542640889,-34033.59373453,0.000138,3]
[334771369,1723542640899,-531.16504504,0.00013879,2]
[334771371,1723542640908,-1418.1,0.00013972,2]
[334771373,1723542640918,-1249.49,0.00013972,2]
[334771375,1723542640928,-1182.62,0.00013972,2]
[334771377,1723542640937,-500.0,0.00013972,2]
[334771379,1723542640947,-998.81,0.00013973,2]
[334771380,1723542640957,-154.96,0.00013973,2]
[334771382,1723542640966,-3081.5129697,0.00013996,2]
[334771384,1723542640975,-3032.072673,0.00013999,2]
[334771386,1723542640985,-2472.29168674,0.00014011,2]
[334771388,1723542640995,-156.66,0.00014104,2]
[334771390,1723542641004,-1418.1,0.00014246,2]
[334771392,1723542641013,-1249.49,0.00014246,2]
[334771393,1723542641023,-1182.62,0.00014246,2]
[334771395,1723542641033,-500.0,0.00014246,2]
[334771397,1723542641043,-2215.52370993,0.00014283,2]
[334771399,1723542641053,-2145.43588228,0.00014451,2]
[334771401,1723542641062,-200.0,0.00014488,2]
[334771402,1723542641072,-216.0,0.00014501,2]
[334771403,1723542641081,-2111.63219542,0.00014519,2]
[334771404,1723542641091,-1418.1,0.0001452,2]
[334771405,1723542641101,-1249.49,0.0001452,2]
[334771406,1723542641110,-1182.62,0.0001452,2]
[334771407,1723542641120,-500.0,0.0001452,2]
[334771408,1723542641129,-1000.0,0.00014565,2]
[334771409,1723542641139,-2200.59357442,0.00014789,2]
[334771410,1723542641148,-1418.1,0.00014794,2]
[334771411,1723542641158,-1249.49,0.00014794,2]
[334771412,1723542641167,-1182.62,0.00014794,2]
[334771413,1723542641178,-596.35279459,0.00014794,2]
[334771414,1723542641187,-150.0,0.00014835,2]
[334771415,1723542641196,-1418.1,0.00015068,2]
[334771416,1723542641206,-1249.49,0.00015068,2]
[334771417,1723542641215,-1182.62,0.00015068,2]
[334771418,1723542641224,-300.0,0.00015068,2]
[334771419,1723542641233,-296.31,0.00015299,2]
[334771420,1723542641243,-1418.1,0.00015342,2]
[334771422,1723542641252,-1249.49,0.00015342,2]
[334771424,1723542641262,-1182.62,0.00015342,2]
[334771426,1723542641271,-2472.29168674,0.00015567,2]
[334771427,1723542641281,-1418.1,0.00015616,2]
[334771429,1723542641290,-1249.49,0.00015616,2]
[334771431,1723542641303,-1182.62,0.00015616,2]
[334771433,1723542641314,-216.0,0.00015819,2]
[334771435,1723542641324,-400.0,0.00015857,2]
[334771437,1723542641333,-1000.0,0.00015889,2]
[334771439,1723542641342,-1418.1,0.0001589,2]
[334771441,1723542641352,-1249.49,0.0001589,2]
[334771443,1723542641362,-1182.62,0.0001589,2]
[334771445,1723542641372,-179.4623719,0.00015912,2]
[334771447,1723542641382,-1418.1,0.00016164,2]
[334771449,1723542641391,-1249.49,0.00016164,2]
[334771451,1723542641401,-1182.62,0.00016164,2]
[334771453,1723542641410,-1556.56701969,0.00016425,2]
[334771471,1723542641580,-720.05251311,0.00016425,2]
[334771473,1723542641593,-1418.1,0.00016438,2]
[334771475,1723542641603,-1249.49,0.00016438,2]
[334771477,1723542641612,-1182.62,0.00016438,2]
[334771479,1723542641621,-300.0,0.00016438,2]
[334771481,1723542641631,-1138.87080337,0.0001647,2]
[334771483,1723542641641,-1764.43455926,0.00016699,2]
[334771485,1723542641650,-1418.1,0.00016712,2]
[334771487,1723542641659,-1249.49,0.00016712,2]
[334771488,1723542641669,-1182.62,0.00016712,2]
[334771490,1723542641678,-1004.57944751,0.00016882,2]
[334771492,1723542641688,-698.86020573,0.00016896,2]
[334771494,1723542641697,-156.66,0.00016925,2]
[334771496,1723542641706,-155.14231642,0.00016949,2]
[334771498,1723542641716,-155.16899118,0.00016951,2]
[334771500,1723542641725,-624.46552432,0.00016952,2]
[334771502,1723542641734,-155.26636358,0.00016953,2]
[334771504,1723542641744,-255.13733329,0.00016953,2]
[334771506,1723542641753,-156.24507989,0.00016953,2]
[334771508,1723542641762,-1418.1,0.00016986,2]
[334771510,1723542641771,-1249.49,0.00016986,2]
[334771512,1723542641780,-1182.62,0.00016986,2]
[334771514,1723542641789,-151.0,0.00016986,2]
[334771516,1723542641801,-125940.25963415,0.00016986,2]
[334771599,1723542642663,-860.52906236,0.00016986,2]
[334771601,1723542642675,-1206.83348292,0.00016986,2]
[334771629,1723542642915,-294.725,0.00010999,2]
[334771634,1723542642936,-205.275,0.00010999,2]
[334771637,1723542642946,-376.0962633,0.00010999,2]
[334771640,1723542642957,-280.12873675,0.00013199,2]
[334771644,1723542642968,-422.95610072,0.00013199,2]
[334771657,1723542643031,-2706.69100178,0.00013199,2]
[334771660,1723542643041,-1764.43455926,0.00016698,2]
[334771662,1723542643051,-309.89325485,0.00016953,2]
[334771664,1723542643061,-8475.8585043,0.00016986,2]
[334771667,1723542643074,-1226.66149548,0.00016986,2]
[334771669,1723542643085,-2772.58746207,0.00016986,2]
[334771671,1723542643096,-4525.0,0.00016986,2]
[334771673,1723542643108,-1052.727132,0.00016986,2]
[334771675,1723542643119,-438.5695808,0.00016986,2]
[334771678,1723542643135,-6433.1559139,0.00016986,2]
[334771680,1723542643147,-968.00000004,0.00016986,2]
[334771682,1723542643159,-499.9996419,0.00016986,2]
[334771684,1723542643170,-26562.30521915,0.00016986,2]
[334771686,1723542643181,-329.95186901,0.00016986,2]
[334771689,1723542643193,-60188.60100192,0.00016986,2]
[334771691,1723542643202,-330.12618987,0.00016999,2]
[334771693,1723542643211,-155.20887752,0.00016999,2]
[334771695,1723542643221,-155.21190305,0.00016999,2]
[334771696,1723542643231,-1042.00659292,0.00016999,2]
[334771698,1723542643240,-440.02330588,0.00016999,2]
[334771700,1723542643249,-155.0,0.00016999,2]
[334771702,1723542643258,-166.79325298,0.00017004,2]
[334771704,1723542643268,-264.75771885,0.00017004,2]
[334771706,1723542643278,-170.38555061,0.00017004,2]
[334771708,1723542643287,-297.42341449,0.00017004,2]
[334771709,1723542643297,-155.28753142,0.00017004,2]
[334771711,1723542643307,-155.31905908,0.00017004,2]
[334771713,1723542643317,-2472.29168674,0.00017122,2]
[334771715,1723542643326,-251.12964781,0.00017259,2]
[334771717,1723542643335,-175.02110761,0.00017259,2]
[334771719,1723542643344,-159.58732349,0.00017259,2]
[334771721,1723542643354,-155.11368733,0.00017259,2]
[334771722,1723542643363,-313.69504062,0.00017259,2]
[334771725,1723542643372,-400.0,0.00017259,2]
[334771728,1723542643381,-1418.1,0.0001726,2]
[334771730,1723542643390,-1249.49,0.0001726,2]
[334771732,1723542643400,-1182.62,0.0001726,2]
[334771734,1723542643409,-385.26710227,0.0001738,2]
[334771735,1723542643418,-165.52184477,0.0001738,2]
[334771737,1723542643428,-155.0,0.0001738,2]
[334771739,1723542643437,-248.97119061,0.0001738,2]
[334771741,1723542643447,-594.98831399,0.0001738,2]
[334771743,1723542643456,-287.2133825,0.0001738,2]
[334771745,1723542643465,-197.09206619,0.0001738,2]
[334771747,1723542643474,-155.0,0.0001738,2]
[334771748,1723542643483,-206.72516919,0.0001738,2]
[334771750,1723542643492,-165.655,0.0001738,2]
[334771752,1723542643501,-547.87854217,0.0001738,2]
[334771754,1723542643510,-155.98213693,0.0001738,2]
[334771756,1723542643520,-235.95346244,0.00017399,2]
[334771757,1723542643529,-892.04452683,0.00017399,2]
[334771759,1723542643539,-528.80773361,0.00017399,2]
[334771761,1723542643549,-155.0,0.00017399,2]
[334771763,1723542643566,-155.31513396,0.00017458,2]
[334771765,1723542643576,-309.22609826,0.00017533,2]
[334771768,1723542643585,-1418.1,0.00017534,2]
[334771771,1723542643594,-1249.49,0.00017534,2]
[334771773,1723542643604,-1182.62,0.00017534,2]
[334771775,1723542643613,-296.31,0.00017563,2]
[334771776,1723542643623,-1074.0,0.00017592,2]
[334771778,1723542643632,-155.0,0.00017608,2]
[334771780,1723542643642,-261.61114158,0.00017636,2]
[334771782,1723542643651,-364.13857336,0.00017636,2]
[334771784,1723542643660,-2670.0,0.000177,5]
[334771786,1723542643670,-155.0,0.00017739,2]
[334771788,1723542643679,-209.32492847,0.00017782,2]
[334771790,1723542643688,-185.00937477,0.00017799,2]
[334771792,1723542643698,-150.0,0.00017802,2]
[334771794,1723542643707,-1418.1,0.00017808,2]
[334771796,1723542643717,-1249.49,0.00017808,2]
[334771798,1723542643726,-1182.62,0.00017808,2]
[334771800,1723542643736,-600.0,0.0001786,2]
[334771801,1723542643745,-162.95196994,0.00017898,2]
[334771803,1723542643755,-676.43950239,0.00018,2]
[334771805,1723542643764,-665.97527808,0.00018,30]
[334771807,1723542643773,-3007.44862,0.00018,2]
[334771809,1723542643783,-308.30308565,0.00018067,2]
[334771811,1723542643792,-1418.1,0.00018082,2]
[334771813,1723542643801,-1249.49,0.00018082,2]
[334771815,1723542643810,-1182.62,0.00018082,2]
[334771817,1723542643819,-1418.1,0.00018356,2]
[334771819,1723542643828,-1249.49,0.00018356,2]
[334771821,1723542643838,-1182.62,0.00018356,2]
[334771822,1723542643847,-316.77347451,0.00018471,2]
[334771824,1723542643856,-155.0,0.00018547,2]
[334771826,1723542643865,-708.0,0.00018567,2]
[334771828,1723542643876,-1131.77847379,0.00018588,2]
[334771830,1723542643889,-2533.75911352,0.000186,2]
[334771832,1723542643898,-1418.1,0.0001863,2]
[334771834,1723542643907,-1249.49,0.0001863,2]
[334771836,1723542643916,-1182.62,0.0001863,2]
[334771838,1723542643927,-2472.29168674,0.00018678,2]
[334771840,1723542643936,-1418.1,0.00018904,2]
[334771842,1723542643945,-1249.49,0.00018904,2]
[334771843,1723542643955,-1182.62,0.00018904,2]
[334771845,1723542643964,-871.27,0.00018943,2]
[334771847,1723542643974,-871.27,0.00018948,2]
[334771849,1723542643983,-871.27,0.00018953,2]
[334771851,1723542643992,-871.27,0.00018958,2]
[334771853,1723542644001,-871.27,0.00018963,2]
[334771855,1723542644011,-871.27,0.00018968,2]
[334771856,1723542644020,-871.27,0.00018973,2]
[334771858,1723542644029,-871.27,0.00018978,2]
[334771860,1723542644039,-871.27,0.00018983,2]
[334771862,1723542644052,-871.27,0.00018987,2]
[334771864,1723542644062,-871.27,0.00018992,2]
[334771866,1723542644071,-871.27,0.00018997,2]
[334771868,1723542644080,-155.0,0.00019,2]
[334771870,1723542644090,-647.05351092,0.00019,2]
[334771872,1723542644099,-871.27,0.00019002,2]
[334771874,1723542644109,-871.27,0.00019007,2]
[334771876,1723542644119,-871.27,0.00019012,2]
[334771878,1723542644128,-871.27,0.00019017,2]
[334771880,1723542644137,-871.27,0.00019022,2]
[334771882,1723542644146,-871.27,0.00019027,2]
[334771884,1723542644155,-871.27,0.00019032,2]
[334771885,1723542644164,-871.27,0.00019037,2]
[334771887,1723542644173,-1418.1,0.00019178,2]
[334771889,1723542644182,-1249.49,0.00019178,2]
[334771891,1723542644192,-1182.62,0.00019178,2]
[334771893,1723542644201,-1941.0,0.000193,2]
[334771895,1723542644210,-1418.1,0.00019452,2]
[334771897,1723542644219,-1249.49,0.00019452,2]
[334771898,1723542644228,-1182.62,0.00019452,2]
[334771900,1723542644237,-211.03413449,0.00019599,2]
[334771902,1723542644247,-155.0,0.00019599,2]
[334771904,1723542644256,-1418.1,0.00019726,2]
[334771906,1723542644265,-1249.49,0.00019726,2]
[334771908,1723542644274,-1182.62,0.00019726,2]
[334771910,1723542644283,-296.31,0.00019827,2]
[334771912,1723542644294,-6920.13993676,0.00019899,2]
[334771914,1723542644307,-152.23,0.000199,31]
[334771916,1723542644316,-152.23,0.000199,31]
[334771917,1723542644325,-152.23,0.000199,31]
[334771919,1723542644335,-152.23,0.000199,31]
[334771921,1723542644344,-152.23,0.000199,31]
[334771923,1723542644353,-152.23,0.000199,31]
[334771925,1723542644363,-152.23,0.000199,31]
[334771927,1723542644372,-152.23,0.000199,31]
[334771929,1723542644381,-152.23,0.000199,31]
[334771931,1723542644390,-152.23,0.000199,31]
[334771932,1723542644399,-152.23,0.000199,31]
[334771933,1723542644408,-9412.63559187,0.0002,2]
[334771934,1723542644417,-1285.05011552,0.0002,2]
[334771935,1723542644426,-993.0,0.0002,2]
[334771936,1723542644436,-12082.5258679,0.0002,2]
[334771937,1723542644445,-2274.47444084,0.0002,2]
[334771938,1723542644454,-155.0,0.0002,2]
[334771939,1723542644464,-211.26434879,0.0002,2]
[334771940,1723542644473,-626.77938752,0.0002,2]
[334771941,1723542644482,-869.13101619,0.0002,2]
[334771942,1723542644491,-155.0,0.0002,2]
[334771943,1723542644501,-300.0,0.0002,2]
[334771944,1723542644511,-155.0,0.0002,2]
[334771945,1723542644521,-158.51486608,0.0002,2]
[334771947,1723542644531,-367.27732127,0.0002,2]
[334771949,1723542644542,-1418.31667913,0.0002,2]
[334771951,1723542644555,-1249.634,0.0002,2]
[334771953,1723542644566,-1182.79809117,0.0002,2]
[334771955,1723542644578,-1406.25774236,0.00020191,2]
[334771957,1723542644589,-800.0,0.00020201,2]
[334771959,1723542644600,-2472.29168674,0.00020233,2]
[334771962,1723542644615,-998.81,0.00020447,2]
[334771964,1723542644626,-1941.0,0.000207,2]
[334771966,1723542644638,-433.33412092,0.00021,2]
[334771968,1723542644650,-524.35062418,0.00021164,2]